Workbook

Sheet 10-Tray
A1: Acetone-Isopropanol (1 atm)
D2: Objective Functions
A3: RB = | B3: 1.75 | D3: Specified or found by iteration | H3: R = | I3: =+G7/E7 -> 0.75 | K3: % in D = | L3: =100*E7*F7/D15 -> 90.3
A4: P (mm Hg) = | B4: 760 | D4: Calculations
A6: Stage | B6: F (mol) | C6: z (mol A/mol) | D6: Fz (mol B) | E6: D (mol) | F6: xD (mol A/mol) | G6: L (mol) | H6: x (mol A/mol) | I6: V (mol) | J6: y (mol A/mol) | K6: T (oC) | L6: f | M6: gA | N6: gI | O6: KA | P6: KI | Q6: BP/DP
A7: Total Cond | E7: 50 | F7: 0.903 | G7: =+G8+I8-B8-I9 -> 37.5 | H7: =+J8 -> 0.902 | K7: 56.9 | L7: =+$E$24/(H7+(1-H7)*$E$24)-$E$25/((1-H7)+H7*$E$25) -> -0.203 | M7: =+EXP(-LN(H7+$E$24*(1-H7))+(1-H7)*L7) -> 1.010 | N7: =+EXP(-LN((1-H7)+$E$25*H7)-H7*L7) -> 2.022 | O7: =M7*10^($B$24-$C$24/($D$24+K7))/$B$4 -> 1.037 | P7: =N7*10^($B$25-$C$25/($D$25+K7))/$B$4 -> 0.662 | Q7: =+H7*O7+(1-H7)*P7-1 -> 0.0001
A8: 1 | D8: =+B8*C8 -> 0 | G8: 37.5 | H8: =+(G9*H9+I9*J9-B9*C9-I10*J10)/G8 -> 0.840 | I8: =+I9 -> 87.5 | J8: =+H8*O8 -> 0.902 | K8: 57.5 | L8: -0.148 | M8: 1.026 | N8: 1.820 | O8: =M8*10^($B$24-$C$24/($D$24+K8))/$B$4 -> 1.074 | P8: =N8*10^($B$25-$C$25/($D$25+K8))/$B$4 -> 0.613 | Q8: =+H8*O8+(1-H8)*P8-1 -> 0.0001
A9: 2 | D9: =+B9*C9 -> 0 | G9: 37.5 | H9: 0.784 | I9: 87.5 | J9: 0.876 | K9: 58.0 | L9: -0.100 | M9: 1.046 | N9: 1.671 | O9: =M9*10^($B$24-$C$24/($D$24+K9))/$B$4 -> 1.117 | P9: =N9*10^($B$25-$C$25/($D$25+K9))/$B$4 -> 0.579 | Q9: 0.0009
A10: 3 | D10: =+B10*C10 -> 0 | G10: 37.5 | H10: 0.731 | I10: 87.5 | J10: 0.852 | K10: 58.6 | L10: -0.057 | M10: 1.071 | N10: 1.554 | O10: =M10*10^($B$24-$C$24/($D$24+K10))/$B$4 -> 1.165 | P10: =N10*10^($B$25-$C$25/($D$25+K10))/$B$4 -> 0.553 | Q10: 0.0007
A11: 4 | D11: 0 | G11: 37.5 | H11: 0.679 | I11: 87.5 | J11: 0.829 | K11: 59.2 | L11: -0.016 | M11: 1.101 | N11: 1.455 | O11: =M11*10^($B$24-$C$24/($D$24+K11))/$B$4 -> 1.222 | P11: =N11*10^($B$25-$C$25/($D$25+K11))/$B$4 -> 0.533 | Q11: 0.0006
A12: 5 | D12: =+B12*C12 -> 0 | G12: 37.5 | H12: 0.625 | I12: 87.5 | J12: 0.807 | K12: 59.9 | L12: 0.024 | M12: 1.136 | N12: 1.370 | O12: 1.291 | P12: 0.518 | Q12: 0.0010
A13: 6 | D13: 0 | G13: 37.5 | H13: 0.573 | I13: 87.5 | J13: 0.784 | K13: 60.6 | L13: 0.063 | M13: 1.177 | N13: 1.300 | O13: 1.368 | P13: 0.508 | Q13: 0.0007
A14: 7 | D14: 0 | G14: =+G15+I15-B15-I16 -> 37.5 | H14: =+(G15*H15+I15*J15-B15*C15-I16*J16)/G14 -> 0.524 | I14: 87.5 | J14: 0.761 | K14: 61.3 | L14: 0.098 | M14: 1.222 | N14: 1.243 | O14: 1.454 | P14: 0.503 | Q14: 0.0009
A15: 8 | B15: 100 | C15: 0.5 | D15: =+B15*C15 -> 50 | G15: =+G16+I16-B16-I17 -> 137.5 | H15: =+(G16*H16+I16*J16-B16*C16-I17*J17)/G15 -> 0.480 | I15: 87.5 | J15: 0.740 | K15: 62.0 | L15: 0.128 | M15: 1.266 | N15: 1.199 | O15: =M15*10^($B$24-$C$24/($D$24+K15))/$B$4 -> 1.542 | P15: =N15*10^($B$25-$C$25/($D$25+K15))/$B$4 -> 0.501 | Q15: 0.0009
A16: 9 | D16: =+B16*C16 -> 0 | G16: =+G17+I17-B17-I18 -> 137.5 | H16: =+(G17*H17+I17*J17-B17*C17-I18*J18)/G16 -> 0.404 | I16: 87.5 | J16: 0.699 | K16: 63.4 | L16: 0.180 | M16: 1.354 | N16: 1.136 | O16: =M16*10^($B$24-$C$24/($D$24+K16))/$B$4 -> 1.728 | P16: =N16*10^($B$25-$C$25/($D$25+K16))/$B$4 -> 0.507 | Q16: 0.0008
A17: 10 | D17: 0 | G17: =+G18+I18 -> 137.5 | H17: =+(I18*J18+G18*H18)/G17 -> 0.251 | I17: =+I18 -> 87.5 | J17: =+H17*O17 -> 0.580 | K17: 67.4 | L17: 0.283 | M17: 1.592 | N17: 1.050 | O17: =M17*10^($B$24-$C$24/($D$24+K17))/$B$4 -> 2.308 | P17: =N17*10^($B$25-$C$25/($D$25+K17))/$B$4 -> 0.561 | Q17: 0.0003
A18: Reboiler | G18: =+SUM(B8:B17)-E7 -> 50.0 | H18: =+(SUM(D8:D17)-E7*F7)/G18 -> 0.097 | I18: =+G18*B3 -> 87.5 | J18: =+H18*O18 -> 0.339 | K18: 74.5 | L18: 0.385 | M18: 1.939 | N18: 1.007 | O18: =M18*10^($B$24-$C$24/($D$24+K18))/$B$4 -> 3.494 | P18: =N18*10^($B$25-$C$25/($D$25+K18))/$B$4 -> 0.732 | Q18: 0.0001
P19: D = | Q19: =+F7-H7 -> 0.0009
I21: Enter the specified variables.
A22: Antoine Constants | E22: Wilson | I22: Make a guess for R and xD.
B23: A | C23: B | D23: C | E23: D | I23: Press ctl-shift- b to initiate one pass of Solver.
A24: A | B24: 7.11714 | C24: 1210.595 | D24: 229.664 | E24: 0.7012 | I24: You may have to press many times until no further changes occur in column Q.
A25: I | B25: 7.74021 | C25: 1359.517 | D25: 197.527 | E25: 0.5502
A27: Operating Lines | E27: McCabe-Thiele
A28: x | B28: y (TOL) | C28: y (BOL) | E28: x | F28: y
A29: 0 | B29: =+($G$7/$I$8)*A29+($E$7/$I$8)*$F$7 -> 0.5159 | C29: =+($G$17/$I$18)*A29-($G$18/$I$18)*$H$18 -> -0.0555 | E29: =+H7 -> 0.9020 | F29: =+J8 -> 0.9020
A30: 0.1 | B30: =+($G$7/$I$8)*A30+($E$7/$I$8)*$F$7 -> 0.5588 | C30: =+($G$17/$I$18)*A30-($G$18/$I$18)*$H$18 -> 0.1016 | E30: =+H8 -> 0.8399 | F30: =+J8 -> 0.9020
A31: 0.2 | B31: 0.6016 | C31: 0.2588 | E31: =+H8 -> 0.8399 | F31: =+J9 -> 0.8759
A32: 0.3 | B32: 0.6445 | C32: 0.4159 | E32: =+H9 -> 0.7840 | F32: =+J9 -> 0.8759
A33: 0.4 | B33: 0.6873 | C33: 0.5731 | E33: =+H9 -> 0.7840 | F33: =+J10 -> 0.8519
A34: 0.5 | B34: 0.7302 | C34: 0.7302 | E34: =+H10 -> 0.7310 | F34: =+J10 -> 0.8519
A35: 0.6 | B35: 0.7731 | C35: 0.8873 | E35: =+H10 -> 0.7310 | F35: =+J11 -> 0.8292
A36: 0.7 | B36: 0.8159 | C36: 1.0445 | E36: =+H11 -> 0.6785 | F36: =+J11 -> 0.8292
A37: 0.8 | B37: 0.8588 | C37: 1.2016 | E37: =+H11 -> 0.6785 | F37: =+J12 -> 0.8067
A38: 0.9 | B38: 0.9016 | C38: 1.3588 | E38: =+H12 -> 0.6251 | F38: =+J12 -> 0.8067
A39: 1 | B39: 0.9445 | C39: 1.5159 | E39: =+H12 -> 0.6251 | F39: =+J13 -> 0.7838
E40: =+H13 -> 0.5729 | F40: =+J13 -> 0.7838
A41: Feed Line | B41: x | C41: y | E41: =+H13 -> 0.5729 | F41: =+J14 -> 0.7615
B42: =+SUM(C8:C17) -> 0.5 | C42: 0 | E42: =+H14 -> 0.5236 | F42: =+J14 -> 0.7615
B43: =+SUM(C8:C17) -> 0.5 | C43: 1 | E43: =+H14 -> 0.5236 | F43: =+J15 -> 0.7403
E44: =+H15 -> 0.4801 | F44: =+J15 -> 0.7403
A45: 45o Line | B45: x | C45: y | E45: =+H15 -> 0.4801 | F45: =+J16 -> 0.6989
B46: 0 | C46: 0 | E46: =+H16 -> 0.4045 | F46: =+J16 -> 0.6989
B47: 1 | C47: 1 | E47: =+H16 -> 0.4045 | F47: =+J17 -> 0.5801
E48: =+H17 -> 0.2514 | F48: =+J17 -> 0.5801
E49: =+H17 -> 0.2514 | F49: =+J18 -> 0.3395
E50: =+H18 -> 0.0971 | F50: =+J18 -> 0.3395
E51: =+H18 -> 0.0971 | F51: =+E51 -> 0.0971

Sheet Acetone-Isopropanol
A1: Acetone-Isopropanol (1 atm) | F1: x | G1: y | I1: Antoine | J1: A | K1: B | L1: C
A2: From ChemCAD | F2: 0 | G2: 0 | I2: A | J2: 7.11714 | K2: 1210.595 | L2: 229.664 | P2: LAI | Q2: LiA | T2: Dortmund Data Bank
A3: K-value model: NRTL | F3: 1 | G3: 1 | I3: I | J3: 7.74021 | K3: 1359.517 | L3: 197.527 | O3: x = 0.5 | P3: 0.7012 | Q3: 0.5502 | T3: T (K) | U3: x | V3: y
T4: 352.9300 | U4: 0.0359 | V4: 0.1135
A5: T (oC) | B5: xA | C5: xI | D5: yA | E5: yI | F5: PA | G5: PI | H5: gA | I5: gI | J5: f | K5: Wilson A | L5: Wilson I | M5: LAI | N5: LiA | O5: f | P5: gA | Q5: yA | T5: 348.5600 | U5: 0.1080 | V5: 0.3018
A6: 82.5 | B6: 0.0000 | C6: =1-B6 -> 1.0000 | D6: 0.0000 | E6: =1-D6 -> 1.0000 | F6: =10^($J$2-$K$2/($L$2+A6)) -> 1732.6 | G6: =10^($J$3-$K$3/($L$3+A6)) -> 766.9 | O6: =+$P$3/(B6+$P$3*C6)-$Q$3/(C6+$Q$3*B6) -> 0.4498 | P6: =+EXP(-LN(B6+$P$3*C6)+C6*O6) -> 2.2363 | Q6: 0.0000 | T6: 346.5600 | U6: 0.1468 | V6: 0.3793
A7: 81.5 | B7: 0.0100 | C7: =1-B7 -> 0.9900 | D7: 0.0457 | E7: =1-D7 -> 0.9544 | F7: =10^($J$2-$K$2/($L$2+A7)) -> 1686.9 | G7: =10^($J$3-$K$3/($L$3+A7)) -> 738.8 | H7: =+D7*760/(B7*F7) -> 2.0567 | I7: =+E7*760/(C7*G7) -> 0.9916 | J7: =+M7/(B7+M7*C7)-N7/(C7+N7*B7) -> 0.4876 | K7: =+LN(H7)+LN(B7+M7*C7)-C7*J7 -> -0.4448 | L7: =+LN(I7)+LN(C7+N7*B7)+B7*J7 -> -0.0086 | M7: 0.5000 | N7: 0.5000 | O7: =+$P$3/(B7+$P$3*C7)-$Q$3/(C7+$Q$3*B7) -> 0.4431 | P7: =+EXP(-LN(B7+$P$3*C7)+C7*O7) -> 2.2021 | Q7: =+B7*F7*P7/760 -> 0.0489 | T7: 344.7800 | U7: 0.1927 | V7: 0.4525
A8: 80.6 | B8: 0.0200 | C8: 0.9800 | D8: 0.0880 | E8: =1-D8 -> 0.9120 | F8: =10^($J$2-$K$2/($L$2+A8)) -> 1644.0 | G8: =10^($J$3-$K$3/($L$3+A8)) -> 712.7 | H8: =+D8*760/(B8*F8) -> 2.0331 | I8: 0.9924 | J8: =+M8/(B8+M8*C8)-N8/(C8+N8*B8) -> 0.4753 | K8: =+LN(H8)+LN(B8+M8*C8)-C8*J8 -> -0.4296 | L8: =+LN(I8)+LN(C8+N8*B8)+B8*J8 -> -0.0082 | M8: 0.5000 | N8: 0.5000 | O8: 0.4364 | P8: 2.1687 | Q8: =+B8*F8*P8/760 -> 0.0938 | T8: 342.4700 | U8: 0.2486 | V8: 0.5261
A9: 79.8 | B9: 0.0300 | C9: 0.9700 | D9: 0.1273 | E9: 0.8728 | F9: 1603.8 | G9: 688.4 | H9: 2.0101 | I9: 0.9933 | J9: 0.4633 | K9: -0.4148 | L9: -0.0080 | M9: 0.5000 | N9: 0.5000 | O9: 0.4297 | P9: 2.1363 | Q9: 0.1352 | T9: 338.1600 | U9: 0.3997 | V9: 0.686
A10: 79.0 | B10: 0.0400 | C10: 0.9600 | D10: 0.1638 | E10: 0.8362 | F10: 1565.9 | G10: 665.8 | H10: 1.9872 | I10: 0.9943 | J10: 0.4513 | K10: -0.4005 | L10: -0.0079 | M10: 0.5000 | N10: 0.5000 | O10: 0.4230 | P10: 2.1046 | Q10: 0.1735 | T10: 337.7500 | U10: 0.4215 | V10: 0.6974
A11: 78.2 | B11: 0.0500 | C11: 0.9500 | D11: 0.1978 | E11: 0.8022 | F11: 1530.3 | G11: 644.7 | H11: 1.9646 | I11: 0.9954 | J11: 0.4396 | K11: -0.3866 | L11: -0.0080 | M11: 0.5000 | N11: 0.5000 | O11: 0.4163 | P11: 2.0738 | Q11: 0.2088 | T11: 336.9500 | U11: 0.4629 | V11: 0.7242
A12: 77.4 | B12: 0.0600 | C12: 0.9400 | D12: 0.2295 | E12: 0.7705 | F12: 1496.8 | G12: 625.1 | H12: 1.9424 | I12: 0.9966 | J12: 0.4279 | K12: -0.3732 | L12: -0.0082 | M12: 0.5000 | N12: 0.5000 | O12: 0.4096 | P12: 2.0438 | Q12: 0.2415 | T12: 334.3400 | U12: 0.6077 | V12: 0.8081
A13: 76.7 | B13: 0.0700 | C13: 0.9300 | D13: 0.2592 | E13: 0.7408 | F13: 1465.2 | G13: 606.6 | H13: 1.9204 | I13: 0.9980 | J13: 0.4164 | K13: -0.3602 | L13: -0.0085 | M13: 0.5000 | N13: 0.5000 | O13: 0.4030 | P13: 2.0145 | Q13: 0.2719 | T13: 331.9000 | U13: 0.7691 | V13: 0.8873
A14: 76.0 | B14: 0.0800 | C14: 0.9200 | D14: 0.2869 | E14: 0.7131 | F14: 1435.4 | G14: 589.4 | H14: 1.8987 | I14: 0.9995 | J14: 0.4051 | K14: -0.3477 | L14: -0.0089 | M14: 0.5000 | N14: 0.5000 | O14: 0.3963 | P14: 1.9859 | Q14: 0.3001 | T14: 329.9300 | U14: 0.9249 | V14: 0.9614
A15: 75.4 | B15: 0.0900 | C15: 0.9100 | D15: 0.3128 | E15: 0.6872 | F15: 1407.3 | G15: 573.3 | H15: 1.8772 | I15: 1.0011 | J15: 0.3939 | K15: -0.3356 | L15: -0.0095 | M15: 0.5000 | N15: 0.5000 | O15: 0.3897 | P15: 1.9581 | Q15: 0.3263
A16: 74.7 | B16: 0.1000 | C16: 0.9000 | D16: 0.3372 | E16: 0.6628 | F16: 1380.7 | G16: 558.1 | H16: 1.8560 | I16: 1.0028 | J16: 0.3828 | K16: -0.3239 | L16: -0.0102 | M16: 0.5000 | N16: 0.5000 | O16: 0.3831 | P16: 1.9309 | Q16: 0.3508 | R16: Columns K and L are the Wilson equation, all terms on one side.
A17: 74.1 | B17: 0.1100 | C17: 0.8900 | D17: 0.3601 | E17: 0.6400 | F17: 1355.5 | G17: 543.9 | H17: 1.8351 | I17: 1.0047 | J17: 0.3718 | K17: -0.3126 | L17: -0.0110 | M17: 0.5000 | N17: 0.5000 | O17: 0.3764 | P17: 1.9044 | Q17: 0.3736 | R17: Set columns K and L to zero by changing columns M and N.
A18: 73.5 | B18: 0.1200 | C18: 0.8800 | D18: 0.3816 | E18: 0.6184 | F18: 1331.7 | G18: 530.5 | H18: 1.8146 | I18: 1.0067 | J18: 0.3609 | K18: -0.3016 | L18: -0.0118 | M18: 0.5000 | N18: 0.5000 | O18: 0.3698 | P18: 1.8786 | Q18: 0.3950 | R18: Specifically, choose x = 0.3, 0.5, and 0.7.
A19: 73.0 | B19: 0.1300 | C19: 0.8700 | D19: 0.4018 | E19: 0.5982 | F19: 1309.2 | G19: 517.9 | H19: 1.7943 | I19: 1.0089 | J19: 0.3502 | K19: -0.2910 | L19: -0.0128 | M19: 0.5000 | N19: 0.5000 | O19: 0.3632 | P19: 1.8534 | Q19: 0.4150 | R19: The L change with each row but in such a way that any produce a
A20: 72.4 | B20: 0.1400 | C20: 0.8600 | D20: 0.4209 | E20: 0.5791 | F20: 1287.8 | G20: 506.1 | H20: 1.7743 | I20: 1.0112 | J20: 0.3396 | K20: -0.2807 | L20: -0.0139 | M20: 0.5000 | N20: 0.5000 | O20: 0.3566 | P20: 1.8288 | Q20: 0.4338 | R20: good fit of the data.
A21: 71.9 | B21: 0.1500 | C21: 0.8500 | D21: 0.4389 | E21: 0.5611 | F21: 1267.5 | G21: 494.9 | H21: 1.7546 | I21: 1.0137 | J21: 0.3290 | K21: -0.2708 | L21: -0.0150 | M21: 0.5000 | N21: 0.5000 | O21: 0.3500 | P21: 1.8048 | Q21: 0.4515
A22: 71.4 | B22: 0.1600 | C22: 0.8400 | D22: 0.4560 | E22: 0.5440 | F22: 1248.2 | G22: 484.3 | H22: 1.7353 | I22: 1.0162 | J22: 0.3186 | K22: -0.2612 | L22: -0.0163 | M22: 0.5000 | N22: 0.5000 | O22: 0.3433 | P22: 1.7814 | Q22: 0.4681
A23: 70.9 | B23: 0.1700 | C23: 0.8300 | D23: 0.4721 | E23: 0.5279 | F23: 1229.9 | G23: 474.4 | H23: 1.7161 | I23: 1.0190 | J23: 0.3083 | K23: -0.2519 | L23: -0.0176 | M23: 0.5000 | N23: 0.5000 | O23: 0.3367 | P23: 1.7586 | Q23: 0.4838
A24: 70.5 | B24: 0.1800 | C24: 0.8200 | D24: 0.4874 | E24: 0.5126 | F24: 1212.5 | G24: 464.9 | H24: 1.6973 | I24: 1.0218 | J24: 0.2980 | K24: -0.2429 | L24: -0.0191 | M24: 0.5000 | N24: 0.5000 | O24: 0.3301 | P24: 1.7363 | Q24: 0.4986
A25: 70.0 | B25: 0.1900 | C25: 0.8100 | D25: 0.5019 | E25: 0.4981 | F25: 1195.8 | G25: 456.0 | H25: 1.6789 | I25: 1.0249 | J25: 0.2878 | K25: -0.2342 | L25: -0.0205 | M25: 0.5000 | N25: 0.5000 | O25: 0.3235 | P25: 1.7146 | Q25: 0.5126
A26: 69.6 | B26: 0.2000 | C26: 0.8000 | D26: 0.5157 | E26: 0.4843 | F26: 1180.0 | G26: 447.5 | H26: 1.6607 | I26: 1.0281 | J26: 0.2778 | K26: -0.2258 | L26: -0.0221 | M26: 0.5000 | N26: 0.5000 | O26: 0.3169 | P26: 1.6934 | Q26: 0.5259
A27: 69.2 | B27: 0.2100 | C27: 0.7900 | D27: 0.5288 | E27: 0.4712 | F27: 1165.0 | G27: 439.5 | H27: 1.6428 | I27: 1.0315 | J27: 0.2678 | K27: -0.2177 | L27: -0.0237 | M27: 0.5000 | N27: 0.5000 | O27: 0.3103 | P27: 1.6726 | Q27: 0.5384
A28: 68.8 | B28: 0.2200 | C28: 0.7800 | D28: 0.5413 | E28: 0.4587 | F28: 1150.6 | G28: 431.8 | H28: 1.6252 | I28: 1.0350 | J28: 0.2579 | K28: -0.2098 | L28: -0.0254 | M28: 0.5000 | N28: 0.5000 | O28: 0.3037 | P28: 1.6524 | Q28: 0.5503
A29: 68.4 | B29: 0.2300 | C29: 0.7700 | D29: 0.5532 | E29: 0.4468 | F29: 1136.8 | G29: 424.6 | H29: 1.6079 | I29: 1.0387 | J29: 0.2480 | K29: -0.2022 | L29: -0.0271 | M29: 0.5000 | N29: 0.5000 | O29: 0.2971 | P29: 1.6327 | Q29: 0.5617
A30: 68.0 | B30: 0.2400 | C30: 0.7600 | D30: 0.5645 | E30: 0.4355 | F30: 1123.7 | G30: 417.7 | H30: 1.5909 | I30: 1.0426 | J30: 0.2383 | K30: -0.1948 | L30: -0.0289 | M30: 0.5000 | N30: 0.5000 | O30: 0.2905 | P30: 1.6134 | Q30: 0.5725
A31: 67.7 | B31: 0.2500 | C31: 0.7500 | D31: 0.5754 | E31: 0.4246 | F31: 1111.2 | G31: 411.1 | H31: 1.5742 | I31: 1.0466 | J31: 0.2286 | K31: -0.1877 | L31: -0.0308 | M31: 0.5000 | N31: 0.5000 | O31: 0.2839 | P31: 1.5946 | Q31: 0.5829
A32: 67.3 | B32: 0.2600 | C32: 0.7400 | D32: 0.5858 | E32: 0.4142 | F32: 1099.1 | G32: 404.8 | H32: 1.5578 | I32: 1.0509 | J32: 0.2189 | K32: -0.1808 | L32: -0.0327 | M32: 0.5000 | N32: 0.5000 | O32: 0.2772 | P32: 1.5762 | Q32: 0.5927
A33: 67.0 | B33: 0.2700 | C33: 0.7300 | D33: 0.5957 | E33: 0.4043 | F33: 1087.6 | G33: 398.9 | H33: 1.5416 | I33: 1.0553 | J33: 0.2094 | K33: -0.1741 | L33: -0.0347 | M33: 0.5000 | N33: 0.5000 | O33: 0.2706 | P33: 1.5583 | Q33: 0.6021
A34: 66.7 | B34: 0.2800 | C34: 0.7200 | D34: 0.6052 | E34: 0.3948 | F34: 1076.6 | G34: 393.2 | H34: 1.5258 | I34: 1.0599 | J34: 0.1999 | K34: -0.1677 | L34: -0.0367 | M34: 0.5000 | N34: 0.5000 | O34: 0.2640 | P34: 1.5408 | Q34: 0.6112
A35: 66.4 | B35: 0.2900 | C35: 0.7100 | D35: 0.6143 | E35: 0.3857 | F35: 1066.0 | G35: 387.7 | H35: 1.5102 | I35: 1.0647 | J35: 0.1904 | K35: -0.1614 | L35: -0.0387 | M35: 0.5000 | N35: 0.5000 | O35: 0.2573 | P35: 1.5237 | Q35: 0.6198
A36: 66.1 | B36: 0.3000 | C36: 0.7000 | D36: 0.6231 | E36: 0.3769 | F36: 1055.9 | G36: 382.5 | H36: 1.4950 | I36: 1.0697 | J36: 0.2627 | K36: 0.0000 | L36: 0.0000 | M36: 0.7199 | N36: 0.5467 | O36: 0.2507 | P36: 1.5070 | Q36: 0.6281
A37: 65.8 | B37: 0.3100 | C37: 0.6900 | D37: 0.6316 | E37: 0.3684 | F37: 1046.2 | G37: 377.6 | H37: 1.4800 | I37: 1.0748 | J37: 0.1716 | K37: -0.1495 | L37: -0.0430 | M37: 0.5000 | N37: 0.5000 | O37: 0.2440 | P37: 1.4907 | Q37: 0.6361
A38: 65.5 | B38: 0.3200 | C38: 0.6800 | D38: 0.6397 | E38: 0.3603 | F38: 1036.8 | G38: 372.8 | H38: 1.4653 | I38: 1.0802 | J38: 0.1623 | K38: -0.1439 | L38: -0.0452 | M38: 0.5000 | N38: 0.5000 | O38: 0.2373 | P38: 1.4748 | Q38: 0.6438
A39: 65.2 | B39: 0.3300 | C39: 0.6700 | D39: 0.6475 | E39: 0.3525 | F39: 1027.8 | G39: 368.2 | H39: 1.4508 | I39: 1.0858 | J39: 0.1531 | K39: -0.1384 | L39: -0.0475 | M39: 0.5000 | N39: 0.5000 | O39: 0.2306 | P39: 1.4593 | Q39: 0.6513
A40: 65.0 | B40: 0.3400 | C40: 0.6600 | D40: 0.6551 | E40: 0.3449 | F40: 1019.2 | G40: 363.9 | H40: 1.4367 | I40: 1.0916 | J40: 0.1439 | K40: -0.1331 | L40: -0.0498 | M40: 0.5000 | N40: 0.5000 | O40: 0.2240 | P40: 1.4441 | Q40: 0.6584
A41: 64.7 | B41: 0.3500 | C41: 0.6500 | D41: 0.6624 | E41: 0.3377 | F41: 1010.9 | G41: 359.7 | H41: 1.4228 | I41: 1.0976 | J41: 0.1347 | K41: -0.1280 | L41: -0.0521 | M41: 0.5000 | N41: 0.5000 | O41: 0.2172 | P41: 1.4293 | Q41: 0.6654
A42: 64.5 | B42: 0.3600 | C42: 0.6400 | D42: 0.6694 | E42: 0.3306 | F42: 1002.8 | G42: 355.6 | H42: 1.4092 | I42: 1.1039 | J42: 0.1255 | K42: -0.1230 | L42: -0.0544 | M42: 0.5000 | N42: 0.5000 | O42: 0.2105 | P42: 1.4148 | Q42: 0.6721
A43: 64.2 | B43: 0.3700 | C43: 0.6300 | D43: 0.6762 | E43: 0.3238 | F43: 995.1 | G43: 351.8 | H43: 1.3958 | I43: 1.1104 | J43: 0.1164 | K43: -0.1182 | L43: -0.0568 | M43: 0.5000 | N43: 0.5000 | O43: 0.2038 | P43: 1.4007 | Q43: 0.6786
A44: 64.0 | B44: 0.3800 | C44: 0.6200 | D44: 0.6828 | E44: 0.3172 | F44: 987.7 | G44: 348.0 | H44: 1.3827 | I44: 1.1171 | J44: 0.1074 | K44: -0.1136 | L44: -0.0592 | M44: 0.5000 | N44: 0.5000 | O44: 0.1970 | P44: 1.3869 | Q44: 0.6849
A45: 63.8 | B45: 0.3900 | C45: 0.6100 | D45: 0.6892 | E45: 0.3108 | F45: 980.5 | G45: 344.5 | H45: 1.3698 | I45: 1.1241 | J45: 0.0983 | K45: -0.1091 | L45: -0.0616 | M45: 0.5000 | N45: 0.5000 | O45: 0.1903 | P45: 1.3734 | Q45: 0.6910
A46: 63.5 | B46: 0.4000 | C46: 0.6000 | D46: 0.6954 | E46: 0.3046 | F46: 973.6 | G46: 341.0 | H46: 1.3572 | I46: 1.1313 | J46: 0.0893 | K46: -0.1048 | L46: -0.0641 | M46: 0.5000 | N46: 0.5000 | O46: 0.1835 | P46: 1.3603 | Q46: 0.6970
A47: 63.3 | B47: 0.4100 | C47: 0.5900 | D47: 0.7015 | E47: 0.2985 | F47: 966.8 | G47: 337.7 | H47: 1.3449 | I47: 1.1387 | J47: 0.0803 | K47: -0.1006 | L47: -0.0666 | M47: 0.5000 | N47: 0.5000 | O47: 0.1767 | P47: 1.3474 | Q47: 0.7028
A48: 63.1 | B48: 0.4200 | C48: 0.5800 | D48: 0.7074 | E48: 0.2926 | F48: 960.3 | G48: 334.5 | H48: 1.3328 | I48: 1.1465 | J48: 0.0713 | K48: -0.0965 | L48: -0.0691 | M48: 0.5000 | N48: 0.5000 | O48: 0.1699 | P48: 1.3349 | Q48: 0.7084
A49: 62.9 | B49: 0.4300 | C49: 0.5700 | D49: 0.7131 | E49: 0.2869 | F49: 954.1 | G49: 331.4 | H49: 1.3210 | I49: 1.1544 | J49: 0.0624 | K49: -0.0926 | L49: -0.0717 | M49: 0.5000 | N49: 0.5000 | O49: 0.1630 | P49: 1.3227 | Q49: 0.7140
A50: 62.7 | B50: 0.4400 | C50: 0.5600 | D50: 0.7187 | E50: 0.2813 | F50: 948.0 | G50: 328.4 | H50: 1.3094 | I50: 1.1627 | J50: 0.0534 | K50: -0.0888 | L50: -0.0742 | M50: 0.5000 | N50: 0.5000 | O50: 0.1562 | P50: 1.3107 | Q50: 0.7194
A51: 62.5 | B51: 0.4500 | C51: 0.5500 | D51: 0.7241 | E51: 0.2759 | F51: 942.1 | G51: 325.5 | H51: 1.2981 | I51: 1.1712 | J51: 0.0445 | K51: -0.0852 | L51: -0.0769 | M51: 0.5000 | N51: 0.5000 | O51: 0.1493 | P51: 1.2991 | Q51: 0.7247
A52: 62.4 | B52: 0.4600 | C52: 0.5400 | D52: 0.7294 | E52: 0.2706 | F52: 936.4 | G52: 322.7 | H52: 1.2870 | I52: 1.1800 | J52: 0.0356 | K52: -0.0816 | L52: -0.0795 | M52: 0.5000 | N52: 0.5000 | O52: 0.1424 | P52: 1.2877 | Q52: 0.7298
A53: 62.2 | B53: 0.4700 | C53: 0.5300 | D53: 0.7346 | E53: 0.2654 | F53: 930.9 | G53: 320.0 | H53: 1.2761 | I53: 1.1892 | J53: 0.0267 | K53: -0.0782 | L53: -0.0821 | M53: 0.5000 | N53: 0.5000 | O53: 0.1355 | P53: 1.2766 | Q53: 0.7349
A54: 62.0 | B54: 0.4800 | C54: 0.5200 | D54: 0.7397 | E54: 0.2603 | F54: 925.5 | G54: 317.4 | H54: 1.2655 | I54: 1.1986 | J54: 0.0178 | K54: -0.0749 | L54: -0.0848 | M54: 0.5000 | N54: 0.5000 | O54: 0.1285 | P54: 1.2658 | Q54: 0.7399
A55: 61.8 | B55: 0.4900 | C55: 0.5100 | D55: 0.7447 | E55: 0.2553 | F55: 920.3 | G55: 314.9 | H55: 1.2551 | I55: 1.2083 | J55: 0.0089 | K55: -0.0717 | L55: -0.0875 | M55: 0.5000 | N55: 0.5000 | O55: 0.1215 | P55: 1.2552 | Q55: 0.7448
A56: 61.7 | B56: 0.5000 | C56: 0.5000 | D56: 0.7496 | E56: 0.2504 | F56: 915.2 | G56: 312.4 | H56: 1.2449 | I56: 1.2184 | J56: 0.1145 | K56: 0.0000 | L56: 0.0000 | M56: 0.7012 | N56: 0.5502 | O56: 0.1145 | P56: 1.2449 | Q56: 0.7496
A57: 61.5 | B57: 0.5100 | C57: 0.4900 | D57: 0.7544 | E57: 0.2456 | F57: 910.3 | G57: 310.0 | H57: 1.2350 | I57: 1.2287 | J57: -0.0089 | K57: -0.0656 | L57: -0.0929 | M57: 0.5000 | N57: 0.5000 | O57: 0.1075 | P57: 1.2349 | Q57: 0.7543
A58: 61.3 | B58: 0.5200 | C58: 0.4800 | D58: 0.7591 | E58: 0.2409 | F58: 905.5 | G58: 307.7 | H58: 1.2253 | I58: 1.2394 | J58: -0.0178 | K58: -0.0627 | L58: -0.0957 | M58: 0.5000 | N58: 0.5000 | O58: 0.1005 | P58: 1.2251 | Q58: 0.7590
A59: 61.2 | B59: 0.5300 | C59: 0.4700 | D59: 0.7638 | E59: 0.2362 | F59: 900.8 | G59: 305.5 | H59: 1.2158 | I59: 1.2505 | J59: -0.0267 | K59: -0.0599 | L59: -0.0985 | M59: 0.5000 | N59: 0.5000 | O59: 0.0934 | P59: 1.2156 | Q59: 0.7636
A60: 61.0 | B60: 0.5400 | C60: 0.4600 | D60: 0.7684 | E60: 0.2316 | F60: 896.2 | G60: 303.3 | H60: 1.2066 | I60: 1.2620 | J60: -0.0356 | K60: -0.0572 | L60: -0.1012 | M60: 0.5000 | N60: 0.5000 | O60: 0.0863 | P60: 1.2063 | Q60: 0.7682
A61: 60.9 | B61: 0.5500 | C61: 0.4500 | D61: 0.7729 | E61: 0.2271 | F61: 891.8 | G61: 301.1 | H61: 1.1975 | I61: 1.2738 | J61: -0.0445 | K61: -0.0546 | L61: -0.1041 | M61: 0.5000 | N61: 0.5000 | O61: 0.0791 | P61: 1.1972 | Q61: 0.7727
A62: 60.7 | B62: 0.5600 | C62: 0.4400 | D62: 0.7774 | E62: 0.2227 | F62: 887.5 | G62: 299.1 | H62: 1.1887 | I62: 1.2859 | J62: -0.0534 | K62: -0.0521 | L62: -0.1069 | M62: 0.5000 | N62: 0.5000 | O62: 0.0719 | P62: 1.1884 | Q62: 0.7771
A63: 60.6 | B63: 0.5700 | C63: 0.4300 | D63: 0.7818 | E63: 0.2182 | F63: 883.2 | G63: 297.0 | H63: 1.1801 | I63: 1.2985 | J63: -0.0624 | K63: -0.0496 | L63: -0.1098 | M63: 0.5000 | N63: 0.5000 | O63: 0.0647 | P63: 1.1798 | Q63: 0.7815
A64: 60.4 | B64: 0.5800 | C64: 0.4200 | D64: 0.7861 | E64: 0.2139 | F64: 879.1 | G64: 295.1 | H64: 1.1717 | I64: 1.3115 | J64: -0.0713 | K64: -0.0473 | L64: -0.1127 | M64: 0.5000 | N64: 0.5000 | O64: 0.0575 | P64: 1.1714 | Q64: 0.7859
A65: 60.3 | B65: 0.5900 | C65: 0.4100 | D65: 0.7905 | E65: 0.2095 | F65: 875.1 | G65: 293.1 | H65: 1.1636 | I65: 1.3249 | J65: -0.0803 | K65: -0.0450 | L65: -0.1156 | M65: 0.5000 | N65: 0.5000 | O65: 0.0502 | P65: 1.1633 | Q65: 0.7903
A66: 60.2 | B66: 0.6000 | C66: 0.4000 | D66: 0.7948 | E66: 0.2052 | F66: 871.2 | G66: 291.3 | H66: 1.1556 | I66: 1.3387 | J66: -0.0893 | K66: -0.0428 | L66: -0.1185 | M66: 0.5000 | N66: 0.5000 | O66: 0.0428 | P66: 1.1554 | Q66: 0.7946
A67: 60.0 | B67: 0.6100 | C67: 0.3900 | D67: 0.7990 | E67: 0.2010 | F67: 867.3 | G67: 289.4 | H67: 1.1478 | I67: 1.3531 | J67: -0.0983 | K67: -0.0407 | L67: -0.1214 | M67: 0.5000 | N67: 0.5000 | O67: 0.0355 | P67: 1.1477 | Q67: 0.7989
A68: 59.9 | B68: 0.6200 | C68: 0.3800 | D68: 0.8033 | E68: 0.1967 | F68: 863.5 | G68: 287.7 | H68: 1.1403 | I68: 1.3678 | J68: -0.1074 | K68: -0.0386 | L68: -0.1245 | M68: 0.5000 | N68: 0.5000 | O68: 0.0281 | P68: 1.1402 | Q68: 0.8032
A69: 59.8 | B69: 0.6300 | C69: 0.3700 | D69: 0.8075 | E69: 0.1925 | F69: 859.8 | G69: 285.9 | H69: 1.1329 | I69: 1.3830 | J69: -0.1164 | K69: -0.0367 | L69: -0.1274 | M69: 0.5000 | N69: 0.5000 | O69: 0.0206 | P69: 1.1329 | Q69: 0.8075
A70: 59.6 | B70: 0.6400 | C70: 0.3600 | D70: 0.8117 | E70: 0.1883 | F70: 856.2 | G70: 284.2 | H70: 1.1258 | I70: 1.3987 | J70: -0.1255 | K70: -0.0348 | L70: -0.1305 | M70: 0.5000 | N70: 0.5000 | O70: 0.0131 | P70: 1.1258 | Q70: 0.8117
A71: 59.5 | B71: 0.6500 | C71: =1-B71 -> 0.3500 | D71: 0.8159 | E71: 0.1841 | F71: 852.6 | G71: 282.5 | H71: 1.1189 | I71: 1.4149 | J71: -0.1347 | K71: -0.0329 | L71: -0.1335 | M71: 0.5000 | N71: 0.5000 | O71: =+$P$3/(B71+$P$3*C71)-$Q$3/(C71+$Q$3*B71) -> 0.0056 | P71: =+EXP(-LN(B71+$P$3*C71)+C71*O71) -> 1.1190 | Q71: 0.8160
A72: 59.4 | B72: 0.6600 | C72: 0.3400 | D72: 0.8201 | E72: =1-D72 -> 0.1799 | F72: =10^($J$2-$K$2/($L$2+A72)) -> 849.2 | G72: =10^($J$3-$K$3/($L$3+A72)) -> 280.9 | H72: =+D72*760/(B72*F72) -> 1.1121 | I72: 1.4316 | J72: =+M72/(B72+M72*C72)-N72/(C72+N72*B72) -> -0.1439 | K72: =+LN(H72)+LN(B72+M72*C72)-C72*J72 -> -0.0312 | L72: =+LN(I72)+LN(C72+N72*B72)+B72*J72 -> -0.1367 | M72: 0.5000 | N72: 0.5000 | O72: -0.0020 | P72: 1.1123 | Q72: =+B72*F72*P72/760 -> 0.8203
A73: 59.3 | B73: 0.6700 | C73: 0.3300 | D73: 0.8243 | E73: 0.1757 | F73: 845.8 | G73: 279.3 | H73: 1.1056 | I73: 1.4489 | J73: -0.1531 | K73: -0.0295 | L73: -0.1397 | M73: 0.5000 | N73: 0.5000 | O73: -0.0096 | P73: 1.1059 | Q73: 0.8245
A74: 59.1 | B74: 0.6800 | C74: 0.3200 | D74: 0.8285 | E74: 0.1715 | F74: 842.4 | G74: 277.7 | H74: 1.0992 | I74: 1.4667 | J74: -0.1623 | K74: -0.0278 | L74: -0.1429 | M74: 0.5000 | N74: 0.5000 | O74: -0.0173 | P74: 1.0996 | Q74: 0.8288
A75: 59.0 | B75: 0.6900 | C75: 0.3100 | D75: 0.8327 | E75: 0.1673 | F75: 839.1 | G75: 276.2 | H75: 1.0931 | I75: 1.4852 | J75: -0.1716 | K75: -0.0262 | L75: -0.1460 | M75: 0.5000 | N75: 0.5000 | O75: -0.0250 | P75: 1.0936 | Q75: 0.8331
A76: 58.9 | B76: 0.7000 | C76: 0.3000 | D76: 0.8369 | E76: 0.1631 | F76: 835.9 | G76: 274.6 | H76: 1.0871 | I76: 1.5041 | J76: -0.0608 | K76: -0.0000 | L76: 0.0000 | M76: 0.6774 | N76: 0.5625 | O76: -0.0328 | P76: 1.0877 | Q76: 0.8374
A77: 58.8 | B77: 0.7100 | C77: 0.2900 | D77: 0.8412 | E77: 0.1588 | F77: 832.7 | G77: 273.2 | H77: 1.0814 | I77: 1.5237 | J77: -0.1904 | K77: -0.0232 | L77: -0.1525 | M77: 0.5000 | N77: 0.5000 | O77: -0.0406 | P77: 1.0821 | Q77: 0.8417
A78: 58.7 | B78: 0.7200 | C78: 0.2800 | D78: 0.8455 | E78: 0.1546 | F78: 829.5 | G78: 271.7 | H78: 1.0758 | I78: 1.5440 | J78: -0.1999 | K78: -0.0218 | L78: -0.1558 | M78: 0.5000 | N78: 0.5000 | O78: -0.0485 | P78: 1.0766 | Q78: 0.8461
A79: 58.6 | B79: 0.7300 | C79: 0.2700 | D79: 0.8498 | E79: 0.1503 | F79: 826.4 | G79: 270.3 | H79: 1.0705 | I79: 1.5649 | J79: -0.2094 | K79: -0.0204 | L79: -0.1591 | M79: 0.5000 | N79: 0.5000 | O79: -0.0564 | P79: 1.0713 | Q79: 0.8504
A80: 58.5 | B80: 0.7400 | C80: 0.2600 | D80: 0.8541 | E80: 0.1459 | F80: 823.4 | G80: 268.9 | H80: 1.0653 | I80: 1.5865 | J80: -0.2189 | K80: -0.0191 | L80: -0.1625 | M80: 0.5000 | N80: 0.5000 | O80: -0.0644 | P80: 1.0662 | Q80: 0.8549
A81: 58.4 | B81: 0.7500 | C81: 0.2500 | D81: 0.8585 | E81: 0.1416 | F81: 820.4 | G81: 267.5 | H81: 1.0603 | I81: 1.6088 | J81: -0.2286 | K81: -0.0179 | L81: -0.1659 | M81: 0.5000 | N81: 0.5000 | O81: -0.0725 | P81: 1.0613 | Q81: 0.8593
A82: 58.3 | B82: 0.7600 | C82: 0.2400 | D82: 0.8629 | E82: 0.1371 | F82: 817.5 | G82: 266.1 | H82: 1.0555 | I82: 1.6319 | J82: -0.2383 | K82: -0.0166 | L82: -0.1694 | M82: 0.5000 | N82: 0.5000 | O82: -0.0806 | P82: 1.0566 | Q82: 0.8638
A83: 58.1 | B83: 0.7700 | C83: 0.2300 | D83: 0.8673 | E83: 0.1327 | F83: 814.6 | G83: 264.8 | H83: 1.0509 | I83: 1.6557 | J83: -0.2480 | K83: -0.0155 | L83: -0.1729 | M83: 0.5000 | N83: 0.5000 | O83: -0.0888 | P83: 1.0521 | Q83: 0.8683
A84: 58.0 | B84: 0.7800 | C84: 0.2200 | D84: 0.8719 | E84: 0.1282 | F84: 811.8 | G84: 263.5 | H84: 1.0465 | I84: 1.6804 | J84: -0.2579 | K84: -0.0144 | L84: -0.1764 | M84: 0.5000 | N84: 0.5000 | O84: -0.0970 | P84: 1.0478 | Q84: 0.8729
A85: 57.9 | B85: 0.7900 | C85: 0.2100 | D85: 0.8764 | E85: 0.1236 | F85: 809.0 | G85: 262.2 | H85: 1.0422 | I85: 1.7058 | J85: -0.2678 | K85: -0.0133 | L85: -0.1800 | M85: 0.5000 | N85: 0.5000 | O85: -0.1053 | P85: 1.0436 | Q85: 0.8776
A86: 57.8 | B86: 0.8000 | C86: 0.2000 | D86: 0.8811 | E86: 0.1189 | F86: 806.2 | G86: 260.9 | H86: 1.0382 | I86: 1.7321 | J86: -0.2778 | K86: -0.0123 | L86: -0.1837 | M86: 0.5000 | N86: 0.5000 | O86: -0.1137 | P86: 1.0396 | Q86: 0.8823
A87: 57.7 | B87: 0.8100 | C87: 0.1900 | D87: 0.8858 | E87: 0.1142 | F87: 803.5 | G87: 259.7 | H87: 1.0344 | I87: 1.7591 | J87: -0.2878 | K87: -0.0113 | L87: -0.1875 | M87: 0.5000 | N87: 0.5000 | O87: -0.1221 | P87: 1.0359 | Q87: 0.8871
A88: 57.6 | B88: 0.8200 | C88: 0.1800 | D88: 0.8906 | E88: 0.1094 | F88: 800.8 | G88: 258.4 | H88: 1.0307 | I88: 1.7873 | J88: -0.2980 | K88: -0.0104 | L88: -0.1913 | M88: 0.5000 | N88: 0.5000 | O88: -0.1307 | P88: 1.0323 | Q88: 0.8920
A89: 57.5 | B89: 0.8300 | C89: 0.1700 | D89: 0.8955 | E89: 0.1045 | F89: 798.2 | G89: 257.2 | H89: 1.0272 | I89: 1.8165 | J89: -0.3083 | K89: -0.0095 | L89: -0.1951 | M89: 0.5000 | N89: 0.5000 | O89: -0.1392 | P89: 1.0289 | Q89: 0.8969
A90: 57.5 | B90: 0.8400 | C90: 0.1600 | D90: 0.9005 | E90: 0.0995 | F90: 795.7 | G90: 256.0 | H90: 1.0240 | I90: 1.8463 | J90: -0.3186 | K90: -0.0087 | L90: -0.1992 | M90: 0.5000 | N90: 0.5000 | O90: -0.1479 | P90: 1.0256 | Q90: 0.9020
A91: 57.4 | B91: 0.8500 | C91: 0.1500 | D91: 0.9056 | E91: 0.0944 | F91: 793.1 | G91: 254.9 | H91: 1.0209 | I91: 1.8774 | J91: -0.3290 | K91: -0.0079 | L91: -0.2032 | M91: 0.5000 | N91: 0.5000 | O91: -0.1567 | P91: 1.0226 | Q91: 0.9071
A92: 57.3 | B92: 0.8600 | C92: 0.1400 | D92: 0.9107 | E92: 0.0893 | F92: 790.6 | G92: 253.7 | H92: 1.0180 | I92: 1.9097 | J92: -0.3396 | K92: -0.0072 | L92: -0.2072 | M92: 0.5000 | N92: 0.5000 | O92: -0.1655 | P92: 1.0198 | Q92: 0.9123
A93: 57.2 | B93: 0.8700 | C93: 0.1300 | D93: 0.9161 | E93: 0.0840 | F93: 788.2 | G93: 252.6 | H93: 1.0153 | I93: 1.9428 | J93: -0.3502 | K93: -0.0065 | L93: -0.2115 | M93: 0.5000 | N93: 0.5000 | O93: -0.1744 | P93: 1.0171 | Q93: 0.9177
A94: 57.1 | B94: 0.8800 | C94: 0.1200 | D94: 0.9215 | E94: 0.0785 | F94: 785.8 | G94: 251.5 | H94: 1.0128 | I94: 1.9774 | J94: -0.3609 | K94: -0.0059 | L94: -0.2157 | M94: 0.5000 | N94: 0.5000 | O94: -0.1834 | P94: 1.0146 | Q94: 0.9232
A95: 57.0 | B95: 0.8900 | C95: 0.1100 | D95: 0.9270 | E95: 0.0730 | F95: 783.4 | G95: 250.5 | H95: 1.0104 | I95: 2.0129 | J95: -0.3718 | K95: -0.0053 | L95: -0.2201 | M95: 0.5000 | N95: 0.5000 | O95: -0.1925 | P95: 1.0123 | Q95: 0.9288
A96: 56.9 | B96: 0.9000 | C96: 0.1000 | D96: 0.9327 | E96: 0.0673 | F96: 781.1 | G96: 249.4 | H96: 1.0083 | I96: 2.0499 | J96: -0.3828 | K96: -0.0047 | L96: -0.2246 | M96: 0.5000 | N96: 0.5000 | O96: -0.2016 | P96: 1.0102 | Q96: 0.9345
A97: 56.8 | B97: 0.9100 | C97: 0.0900 | D97: 0.9386 | E97: 0.0614 | F97: 778.9 | G97: 248.4 | H97: 1.0064 | I97: 2.0880 | J97: -0.3939 | K97: -0.0042 | L97: -0.2292 | M97: 0.5000 | N97: 0.5000 | O97: -0.2109 | P97: 1.0083 | Q97: 0.9404
A98: 56.7 | B98: 0.9200 | C98: 0.0800 | D98: 0.9446 | E98: 0.0554 | F98: 776.7 | G98: 247.4 | H98: 1.0046 | I98: 2.1273 | J98: -0.4051 | K98: -0.0038 | L98: -0.2340 | M98: 0.5000 | N98: 0.5000 | O98: -0.2202 | P98: 1.0066 | Q98: 0.9464
A99: 56.7 | B99: 0.9300 | C99: 0.0700 | D99: 0.9508 | E99: 0.0492 | F99: 774.6 | G99: 246.4 | H99: 1.0031 | I99: 2.1685 | J99: -0.4164 | K99: -0.0034 | L99: -0.2387 | M99: 0.5000 | N99: 0.5000 | O99: -0.2297 | P99: 1.0051 | Q99: 0.9526
A100: 56.6 | B100: 0.9400 | C100: 0.0600 | D100: 0.9572 | E100: 0.0429 | F100: 772.5 | G100: 245.5 | H100: 1.0018 | I100: 2.2109 | J100: -0.4279 | K100: -0.0030 | L100: -0.2437 | M100: 0.5000 | N100: 0.5000 | O100: -0.2392 | P100: 1.0037 | Q100: 0.9590
A101: 56.5 | B101: 0.9500 | C101: 0.0500 | D101: 0.9637 | E101: 0.0363 | F101: 770.5 | G101: 244.6 | H101: 1.0006 | I101: 2.2547 | J101: -0.4396 | K101: -0.0027 | L101: -0.2489 | M101: 0.5000 | N101: 0.5000 | O101: -0.2489 | P101: 1.0026 | Q101: 0.9656
A102: 56.4 | B102: 0.9600 | C102: 0.0400 | D102: 0.9705 | E102: 0.0295 | F102: 768.5 | G102: 243.7 | H102: 0.9997 | I102: 2.3007 | J102: -0.4513 | K102: -0.0025 | L102: -0.2540 | M102: 0.5000 | N102: 0.5000 | O102: -0.2587 | P102: 1.0017 | Q102: 0.9724
A103: 56.4 | B103: 0.9700 | C103: 0.0300 | D103: 0.9775 | E103: 0.0225 | F103: 766.7 | G103: 242.9 | H103: 0.9989 | I103: 2.3481 | J103: -0.4633 | K103: -0.0023 | L103: -0.2594 | M103: 0.5000 | N103: 0.5000 | O103: -0.2685 | P103: 1.0009 | Q103: 0.9795
A104: 56.3 | B104: 0.9800 | C104: 0.0200 | D104: 0.9847 | E104: 0.0153 | F104: 764.9 | G104: 242.0 | H104: 0.9984 | I104: 2.3973 | J104: -0.4753 | K104: -0.0021 | L104: -0.2648 | M104: 0.5000 | N104: 0.5000 | O104: -0.2785 | P104: 1.0004 | Q104: 0.9867
A105: 56.2 | B105: 0.9900 | C105: 0.0100 | D105: 0.9922 | E105: 0.0078 | F105: 763.2 | G105: 241.3 | H105: 0.9981 | I105: 2.4475 | J105: -0.4876 | K105: -0.0020 | L105: -0.2708 | M105: 0.5000 | N105: 0.5000 | O105: -0.2886 | P105: 1.0001 | Q105: 0.9942
A106: 56.2 | B106: 1.0000 | C106: 0.0000 | D106: 1.0000 | E106: 0.0000 | F106: 761.5 | G106: 240.5 | H106: 0.9980 | J106: -0.5000 | M106: 0.5000 | N106: 0.5000 | O106: -0.2988 | P106: 1.0000 | Q106: 1.0020
